[Event "47th Rilton Cup 2017"]
[Site "?"]
[Date "2018.01.01"]
[Round "5"]
[White "Henderson de la Fuente, Lance"]
[Black "Sasikiran, Krishnan"]
[Result "1/2-1/2"]
[ECO "B12"]
[WhiteElo "2419"]
[BlackElo "2680"]
[PlyCount "127"]
[EventDate "2018.??.??"]
[EventType "swiss"]
[EventCountry "SWE"]
[SourceTitle "Stockholm"]
[TimeControl "40/5400+30:1800+30"]
[WhiteClock "0:03:33"]
[BlackClock "0:01:57"]

1. e4 {[%emt 0:00:00]} c6 {[%emt 0:00:00]} 2. d4 {[%emt 0:01:27]} d5 {[%emt 0:00:00]} 3. e5 {[%emt 0:00:12]} Bf5 {[%emt 0:00:10]} 4. Nd2 {[%emt 0:00:27]} e6 {[%emt 0:00:47]} 5. Nb3 {[%emt 0:00:09]} Nd7 {[%emt 0:01:58]} 6. Nf3 {[%emt 0:00:23]} Ne7 {[%emt 0:01:23]} 7. Be2 {[%emt 0:00:24]} h6 {[%emt 0:02:29]} 8. O-O {[%emt 0:00:47]} g5 {[%emt 0:01:06]} 9. Ne1 {[%emt 0:00:35]} Qc7 {[%emt 0:03:35]} 10. g3 {[%emt 0:06:24]} c5 {[%emt 0:13:49]} 11. c3 {[%emt 0:01:06]} Bg6 {[%emt 0:04:22]} 12. Bh5 {[%emt 0:18:10]} O-O-O {[%emt 0:05:59]} 13. Ng2 {[%emt 0:05:35]} c4 {[%emt 0:09:35]} 14. Nd2 {[%emt 0:00:57]} f6 {[%emt 0:02:05]} 15. f4 {[%emt 0:03:00]} Bf5 {[%emt 0:05:34]} 16. Nf3 {[%emt 0:17:42]} Bg7 {[%emt 0:08:36]} 17. b3 {[%emt 0:03:26]} Kb8 {[%emt 0:07:57]} 18. Ba3 {[%emt 0:00:57]} Nc8 {[%emt 0:01:55]} 19. Rf2 {[%emt 0:08:00]} gxf4 {[%emt 0:03:53]} 20. gxf4 {[%emt 0:04:32]} Bf8 {[%emt 0:00:53]} 21. Bxf8 {[%emt 0:01:11]} Rdxf8 {[%emt 0:02:04]} 22. Nfh4 {[%emt 0:01:16]} Bh7 {[%emt 0:03:16]} 23. Bg6 {[%emt 0:05:44]} fxe5 {[%emt 0:03:14]} 24. fxe5 {[%emt 0:04:01]} Rxf2 {[%emt 0:00:54]} 25. Kxf2 {[%emt 0:00:10]} cxb3 {[%emt 0:00:33]} 26. Qxb3 {[%emt 0:00:22]} Ndb6 {[%emt 0:02:15]} 27. Qc2 {[%emt 0:02:00]} Nc4 {[%emt 0:00:54]} 28. Kg1 {[%emt 0:01:28]} Bxg6 {[%emt 0:01:41]} 29. Qxg6 {[%emt 0:00:59]} Nd2 {[%emt 0:00:49]} 30. Rc1 {[%emt 0:01:53]} Rf8 {[%emt 0:03:10]} 31. h3 {[%emt 0:02:59]} Qf7 {[%emt 0:05:13]} 32. Qxf7 {[%emt 0:00:24]} Rxf7 {[%emt 0:00:03]} 33. Ng6 {[%emt 0:02:05]} Kc7 {[%emt 0:01:00]} 34. N2f4 {[%emt 0:01:00]} Kd7 {[%emt 0:00:39]} 35. Nh5 {[%emt 0:00:15]} Ne4 {[%emt 0:01:18]} 36. c4 {[%emt 0:02:41]} dxc4 {[%emt 0:00:25]} 37. Rxc4 {[%emt 0:00:14]} Nb6 {[%emt 0:00:52]} 38. Rc1 {[%emt 0:01:03]} Rf5 {[%emt 0:01:05]} 39. Nhf4 {[%emt 0:00:55]} Nd5 {[%emt 0:00:57]} 40. Nxd5 {[%emt 0:01:28]} exd5 {[%emt 0:00:43]} 41. h4 {[%emt 0:32:00]} Rf3 {[%emt 0:06:27]} 42. h5 {[%emt 0:00:00]} Rf5 {[%emt 0:01:53]} 43. Rc2 {[%emt 0:00:00]} b6 {[%emt 0:04:43]} 44. a4 {[%emt 0:00:00]} Ng5 {[%emt 0:02:04]} 45. Kg2 {[%emt 0:00:00]} Ne6 {[%emt 0:02:34]} 46. Rf2 {[%emt 0:01:54]} Rxf2+ {[%emt 0:06:11]} 47. Kxf2 {[%emt 0:00:02]} Nxd4 {[%emt 0:00:06]} 48. Nf4 {[%emt 0:00:14]} Kc6 {[%emt 0:01:43]} 49. Ke3 {[%emt 0:00:41]} Nf5+ {[%emt 0:01:23]} 50. Kd3 {[%emt 0:00:22]} a6 {[%emt 0:03:00]} 51. Kc3 {[%emt 0:00:43]} b5 {[%emt 0:01:14]} 52. axb5+ {[%emt 0:00:05]} axb5 {[%emt 0:00:04]} 53. Kb4 {[%emt 0:03:11]} d4 {[%emt 0:02:37]} 54. e6 {[%emt 0:00:19]} Ne7 {[%emt 0:00:48]} 55. Nd3 {[%emt 0:00:35]} Kd6 {[%emt 0:02:23]} 56. Kxb5 {[%emt 0:00:14]} Kxe6 {[%emt 0:00:11]} 57. Kc4 {[%emt 0:00:28]} Nf5 {[%emt 0:00:48]} 58. Kc5 {[%emt 0:00:07]} Kf6 {[%emt 0:00:11]} 59. Kd5 {[%emt 0:00:20]} Kg5 {[%emt 0:00:23]} 60. Ke4 {[%emt 0:01:03]} Kg4 {[%emt 0:01:17]} 61. Ne5+ {[%emt 0:00:10]} Kg5 {[%emt 0:00:19]} 62. Nf3+ {[%emt 0:00:49]} Kg4 {[%emt 0:00:10]} 63. Ne5+ {[%emt 0:00:10]} Kg5 {[%emt 0:00:17]} 64. Nf3+ {[%emt 0:00:15]} 1/2-1/2

[Event "47th Rilton Cup 2017"]
[Site "?"]
[Date "2018.01.01"]
[Round "5"]
[White "Eggleston, David"]
[Black "Kotronias, Vasilios"]
[Result "1/2-1/2"]
[ECO "B48"]
[WhiteElo "2389"]
[BlackElo "2524"]
[PlyCount "213"]
[EventDate "2018.??.??"]
[EventType "swiss"]
[EventCountry "SWE"]
[SourceTitle "Stockholm"]
[TimeControl "40/5400+30:1800+30"]
[WhiteClock "0:14:00"]
[BlackClock "0:12:42"]

1. e4 {[%emt 0:02:36]} c5 {[%emt 0:01:35]} 2. Nf3 {[%emt 0:00:11]} e6 {[%emt 0:00:19]} 3. d4 {[%emt 0:00:14]} cxd4 {[%emt 0:00:07]} 4. Nxd4 {[%emt 0:00:07]} Nc6 {[%emt 0:00:05]} 5. Nc3 {[%emt 0:00:14]} Qc7 {[%emt 0:00:07]} 6. Be3 {[%emt 0:00:35]} a6 {[%emt 0:00:07]} 7. Qd2 {[%emt 0:00:28]} Nf6 {[%emt 0:00:11]} 8. O-O-O {[%emt 0:00:11]} Be7 {[%emt 0:00:08]} 9. f3 {[%emt 0:02:41]} b5 {[%emt 0:04:17]} 10. g4 {[%emt 0:00:50]} O-O {[%emt 0:00:24]} 11. g5 {[%emt 0:10:33]} Nh5 {[%emt 0:00:07]} 12. Kb1 {[%emt 0:07:20]} Nxd4 {[%emt 0:12:22]} 13. Qxd4 {[%emt 0:04:16]} Rd8 {[%emt 0:00:13]} 14. Ne2 {[%emt 0:09:25]} Bb7 {[%emt 0:05:42]} 15. Bh3 {[%emt 0:05:36]} Rac8 {[%emt 0:00:45]} 16. Rc1 {[%emt 0:00:17]} d5 {[%emt 0:09:12]} 17. e5 {[%emt 0:00:40]} Qc4 {[%emt 0:00:39]} 18. Qxc4 {[%emt 0:06:50]} dxc4 {[%emt 0:01:38]} 19. Bg4 {[%emt 0:00:49]} g6 {[%emt 0:06:32]} 20. Rcd1 {[%emt 0:00:45]} Ng7 {[%emt 0:00:28]} 21. h4 {[%emt 0:03:06]} Nf5 {[%emt 0:05:31]} 22. Bb6 {[%emt 0:01:02]} Rxd1+ {[%emt 0:07:47]} 23. Rxd1 {[%emt 0:00:02]} Bc5 {[%emt 0:02:18]} 24. Bxc5 {[%emt 0:01:15]} Rxc5 {[%emt 0:00:05]} 25. Bxf5 {[%emt 0:06:25]} Rxe5 {[%emt 0:00:05]} 26. Be4 {[%emt 0:08:22]} Bxe4 {[%emt 0:00:03]} 27. fxe4 {[%emt 0:00:10]} Rxe4 {[%emt 0:00:03]} 28. h5 {[%emt 0:09:51]} gxh5 {[%emt 0:00:07]} 29. Ng3 {[%emt 0:00:18]} Rh4 {[%emt 0:00:19]} 30. a3 {[%emt 0:03:34]} Kg7 {[%emt 0:03:18]} 31. Rd6 {[%emt 0:11:54]} Kg6 {[%emt 0:01:28]} 32. Rxa6 {[%emt 0:01:53]} Rg4 {[%emt 0:00:13]} 33. Ne2 {[%emt 0:00:05]} h4 {[%emt 0:00:32]} 34. Rd6 {[%emt 0:00:04]} Re4 {[%emt 0:02:06]} 35. Nc3 {[%emt 0:01:40]} Re5 {[%emt 0:00:09]} 36. Rd1 {[%emt 0:02:34]} Rxg5 {[%emt 0:03:42]} 37. b4 {[%emt 0:00:17]} cxb3 {[%emt 0:05:55]} 38. cxb3 {[%emt 0:00:01]} h3 {[%emt 0:04:29]} 39. Rh1 {[%emt 0:00:27]} Rg3 {[%emt 0:00:34]} 40. Kc2 {[%emt 0:00:08]} Rg2+ {[%emt 0:12:04]} 41. Kd3 {[%emt 0:30:20]} h2 {[%emt 0:30:12]} 42. Nxb5 {[%emt 0:00:53]} Kg5 {[%emt 0:02:12]} 43. a4 {[%emt 0:00:00]} Kg4 {[%emt 0:00:00]} 44. Nd4 {[%emt 0:00:00]} e5 {[%emt 0:00:00]} 45. Nc6 {[%emt 0:00:00]} f6 {[%emt 0:00:00]} 46. b4 {[%emt 0:00:00]} Kf3 {[%emt 0:00:00]} 47. b5 {[%emt 0:00:00]} Ra2 {[%emt 0:00:00]} 48. b6 {[%emt 0:00:00]} Rb2 {[%emt 0:00:00]} 49. b7 {[%emt 0:02:36]} Rxb7 {[%emt 0:02:37]} 50. Rxh2 {[%emt 0:00:01]} Rc7 {[%emt 0:00:45]} 51. Rc2 {[%emt 0:00:24]} e4+ {[%emt 0:01:03]} 52. Kd2 {[%emt 0:01:39]} Rd7+ {[%emt 0:07:22]} 53. Ke1 {[%emt 0:00:02]} Rd3 {[%emt 0:01:19]} 54. Rc4 {[%emt 0:00:45]} Re3+ {[%emt 0:01:28]} 55. Kf1 {[%emt 0:00:21]} Rd3 {[%emt 0:03:25]} 56. Nd4+ {[%emt 0:00:19]} Ke3 {[%emt 0:00:56]} 57. Nc2+ {[%emt 0:01:30]} Kd2 {[%emt 0:00:02]} 58. Ne1 {[%emt 0:00:10]} Re3 {[%emt 0:00:43]} 59. Rd4+ Kc3 60. Rd5 {[%emt 0:01:14]} Kc4 {[%emt 0:00:47]} 61. Rf5 {[%emt 0:00:15]} Ra3 {[%emt 0:00:18]} 62. a5 {[%emt 0:00:16]} Ra2 {[%emt 0:00:27]} 63. Ng2 {[%emt 0:01:19]} Kb4 {[%emt 0:00:19]} 64. Rxf6 {[%emt 0:00:17]} Rxa5 {[%emt 0:00:05]} 65. Re6 {[%emt 0:00:13]} Kc4 {[%emt 0:00:21]} 66. Rxe4+ {[%emt 0:00:05]} Kd3 {[%emt 0:00:08]} 67. Re3+ {[%emt 0:00:04]} Kd4 {[%emt 0:00:03]} 68. Re7 {[%emt 0:00:04]} Rf5+ {[%emt 0:00:10]} 69. Kg1 {[%emt 0:00:05]} h5 {[%emt 0:00:08]} 70. Kh2 {[%emt 0:00:02]} Re5 {[%emt 0:00:08]} 71. Rh7 {[%emt 0:00:10]} Rf5 {[%emt 0:00:11]} 72. Kh3 {[%emt 0:00:09]} Ke5 {[%emt 0:00:09]} 73. Rh6 {[%emt 0:00:11]} Rf1 {[%emt 0:00:11]} 74. Rxh5+ {[%emt 0:00:07]} Kf6 {[%emt 0:00:06]} 75. Ra5 {[%emt 0:00:04]} Rd1 {[%emt 0:00:14]} 76. Kg4 {[%emt 0:00:07]} Rg1 {[%emt 0:00:05]} 77. Kf3 {[%emt 0:00:20]} Rf1+ {[%emt 0:00:08]} 78. Ke4 {[%emt 0:00:05]} Rb1 {[%emt 0:00:08]} 79. Nf4 {[%emt 0:00:10]} Re1+ {[%emt 0:00:06]} 80. Kd4 {[%emt 0:00:10]} Rd1+ {[%emt 0:00:06]} 81. Nd3 {[%emt 0:00:10]} Rd2 {[%emt 0:00:10]} 82. Ra1 {[%emt 0:00:13]} Rh2 {[%emt 0:00:23]} 83. Ke4 {[%emt 0:00:08]} Re2+ {[%emt 0:00:12]} 84. Kf4 {[%emt 0:00:06]} Rh2 {[%emt 0:00:22]} 85. Ra6+ {[%emt 0:00:21]} Ke7 {[%emt 0:00:05]} 86. Nc5 {[%emt 0:00:37]} Re2 {[%emt 0:00:15]} 87. Ra7+ {[%emt 0:00:10]} Kd6 {[%emt 0:00:16]} 88. Ne4+ {[%emt 0:00:05]} Kc6 {[%emt 0:00:04]} 89. Ke5 {[%emt 0:00:03]} Re1 {[%emt 0:00:26]} 90. Ra6+ {[%emt 0:01:00]} Kb5 {[%emt 0:00:12]} 91. Re6 {[%emt 0:00:04]} Kc4 {[%emt 0:00:17]} 92. Rc6+ {[%emt 0:00:04]} Kb4 {[%emt 0:00:15]} 93. Rc8 {[%emt 0:00:07]} Kb5 {[%emt 0:00:15]} 94. Rc2 {[%emt 0:00:43]} Kb6 {[%emt 0:00:11]} 95. Kd5 {[%emt 0:00:05]} Rh1 {[%emt 0:00:20]} 96. Rb2+ {[%emt 0:01:00]} Kc7 {[%emt 0:00:05]} 97. Rc2+ {[%emt 0:01:13]} Kb6 {[%emt 0:00:05]} 98. Rc6+ {[%emt 0:00:08]} Kb5 {[%emt 0:00:08]} 99. Nc3+ {[%emt 0:00:11]} Kb4 {[%emt 0:00:08]} 100. Kd4 {[%emt 0:00:06]} Rh4+ {[%emt 0:00:07]} 101. Ne4 {[%emt 0:00:03]} Kb5 {[%emt 0:00:45]} 102. Rg6 {[%emt 0:00:24]} Rf4 {[%emt 0:00:51]} 103. Rg8 {[%emt 0:00:41]} Rh4 {[%emt 0:00:09]} 104. Kd5 {[%emt 0:00:25]} Rh5+ {[%emt 0:00:13]} 105. Kd4 {[%emt 0:00:05]} Rh4 {[%emt 0:00:03]} 106. Re8 {[%emt 0:00:14]} Kc6 {[%emt 0:00:35]} 107. Ra8 {[%emt 0:00:09] Kd5+} 1/2-1/2

[Event "47th Rilton Cup 2017"]
[Site "?"]
[Date "2018.01.02"]
[Round "6"]
[White "Alekseenko, Kirill"]
[Black "Das, Sayantan"]
[Result "1-0"]
[ECO "D31"]
[WhiteElo "2590"]
[BlackElo "2442"]
[PlyCount "101"]
[EventDate "2018.??.??"]
[EventType "swiss"]
[EventCountry "SWE"]
[SourceTitle "Stockholm"]
[TimeControl "40/5400+30:1800+30"]
[WhiteClock "0:11:55"]
[BlackClock "0:19:01"]

1. d4 {[%emt 0:00:00]} d5 {[%emt 0:00:14]} 2. c4 {[%emt 0:00:01]} e6 {[%emt 0:00:31]} 3. Nc3 {[%emt 0:00:18]} Bb4 {[%emt 0:00:15]} 4. e3 {[%emt 0:00:35]} Nf6 {[%emt 0:00:17]} 5. a3 {[%emt 0:00:32]} Bxc3+ {[%emt 0:00:10]} 6. bxc3 {[%emt 0:00:07]} c6 {[%emt 0:00:16]} 7. Bd3 {[%emt 0:02:59]} e5 {[%emt 0:01:08]} 8. cxd5 {[%emt 0:06:27]} e4 {[%emt 0:00:11]} 9. Bc2 {[%emt 0:11:07]} cxd5 {[%emt 0:03:56]} 10. Ne2 {[%emt 0:00:03]} O-O {[%emt 0:01:33]} 11. f3 {[%emt 0:03:22]} exf3 {[%emt 0:08:09]} 12. gxf3 {[%emt 0:00:14]} Re8 {[%emt 0:01:19]} 13. O-O {[%emt 0:06:06]} Qc7 {[%emt 0:08:34]} 14. Bd2 {[%emt 0:04:01]} Nc6 {[%emt 0:04:54]} 15. Ng3 {[%emt 0:02:17]} Bh3 {[%emt 0:00:49]} 16. Re1 {[%emt 0:01:08]} Rac8 {[%emt 0:13:13]} 17. Rc1 {[%emt 0:19:59]} Qd6 {[%emt 0:13:22]} 18. Qe2 {[%emt 0:04:15]} Qxa3 {[%emt 0:02:51]} 19. e4 {[%emt 0:00:17]} dxe4 {[%emt 0:22:56]} 20. fxe4 {[%emt 0:00:08]} Bg4 {[%emt 0:00:35]} 21. Qg2 {[%emt 0:01:14]} Qb2 {[%emt 0:10:46]} 22. h3 {[%emt 0:13:45]} Nxd4 {[%emt 0:03:24]} 23. cxd4 {[%emt 0:00:20]} Bxh3 {[%emt 0:00:44]} 24. Qxh3 {[%emt 0:00:58]} Rxc2 {[%emt 0:00:06]} 25. Rxc2 {[%emt 0:04:55]} Qxc2 {[%emt 0:00:03]} 26. Qg2 {[%emt 0:00:05]} Qd3 {[%emt 0:01:01]} 27. Re3 {[%emt 0:03:23]} Qb1+ {[%emt 0:00:11]} 28. Qf1 {[%emt 0:00:32]} Qb6 {[%emt 0:00:56]} 29. Qf3 {[%emt 0:06:35]} h5 {[%emt 0:01:06]} 30. Bc3 {[%emt 0:01:00]} h4 {[%emt 0:00:40]} 31. Nf1 {[%emt 0:00:39]} Qe6 {[%emt 0:00:37]} 32. d5 {[%emt 0:01:28]} Qg4+ {[%emt 0:00:13]} 33. Qxg4 {[%emt 0:00:37]} Nxg4 {[%emt 0:00:02]} 34. Re2 {[%emt 0:00:58]} f6 {[%emt 0:00:56]} 35. Kg2 {[%emt 0:00:39]} Ne5 {[%emt 0:00:42]} 36. Ne3 {[%emt 0:01:11]} Nf7 {[%emt 0:00:36]} 37. Nf5 {[%emt 0:02:08]} b6 {[%emt 0:00:35]} 38. Kf3 {[%emt 0:01:59]} h3 {[%emt 0:00:18]} 39. Kf4 {[%emt 0:00:46]} g6 {[%emt 0:00:44]} 40. Ng3 {[%emt 0:01:35]} Kg7 {[%emt 0:00:19]} 41. Kg4 {[%emt 0:03:33]} Ne5+ {[%emt 0:10:59]} 42. Kxh3 {[%emt 0:06:46]} Nd7 {[%emt 0:00:57]} 43. Rc2 {[%emt 0:01:31]} Rh8+ {[%emt 0:04:14]} 44. Kg2 {[%emt 0:00:22]} Rb8 {[%emt 0:02:48]} 45. Bd4 {[%emt 0:01:52]} Rb7 {[%emt 0:01:44]} 46. d6 {[%emt 0:00:59]} Rb8 {[%emt 0:00:15]} 47. Rc7 {[%emt 0:00:22]} Rd8 {[%emt 0:00:06]} 48. Rxa7 {[%emt 0:00:07]} Kf8 {[%emt 0:00:05]} 49. Ne2 {[%emt 0:01:36]} g5 {[%emt 0:02:04]} 50. Ng3 {[%emt 0:00:19]} Ke8 {[%emt 0:00:41]} 51. Nh5 {[%emt 0:00:19]} 1-0

[Event "47th Rilton Cup 2017"]
[Site "?"]
[Date "2018.01.02"]
[Round "6"]
[White "Kulaots, Kaido"]
[Black "Narayanan, Srinath"]
[Result "1/2-1/2"]
[ECO "C78"]
[WhiteElo "2579"]
[BlackElo "2532"]
[Annotator "RC"]
[PlyCount "148"]
[EventDate "2018.??.??"]
[EventType "swiss"]
[EventCountry "SWE"]
[SourceTitle "Stockholm"]
[TimeControl "40/5400+30:1800+30"]
[WhiteClock "0:12:17"]
[BlackClock "0:04:20"]

1. e4 {[%emt 0:00:00]} e5 {[%emt 0:04:34]} 2. Nf3 {[%emt 0:00:00]} Nc6 {[%emt 0:00:18]} 3. Bb5 {[%emt 0:00:15]} a6 {[%emt 0:00:08]} 4. Ba4 {[%emt 0:00:05]} Nf6 {[%emt 0:00:05]} 5. O-O {[%emt 0:00:06]} b5 {[%emt 0:00:08]} 6. Bb3 {[%emt 0:00:07]} Bc5 {[%emt 0:00:03]} 7. Nxe5 {[%emt 0:07:21]} Nxe5 {[%emt 0:00:17]} 8. d4 {[%emt 0:00:05]} Bxd4 {[%emt 0:00:09]} 9. Qxd4 {[%emt 0:00:05]} d6 {[%emt 0:00:12]} 10. a4 {[%emt 0:01:58]} Rb8 {[%emt 0:02:04]} 11. Bf4 {[%emt 0:07:07]} O-O {[%emt 0:00:46]} 12. Nc3 {[%emt 0:03:50]} c5 {[%emt 0:01:30]} 13. Qe3 {[%emt 0:02:01]} c4 {[%emt 0:21:56]} 14. Ba2 {[%emt 0:00:21]} b4 {[%emt 0:05:15]} 15. Ne2 {[%emt 0:04:16]} Be6 {[%emt 0:10:08]} 16. f3 {[%emt 0:09:49]} b3 {[%emt 0:03:36]} 17. Bb1 {[%emt 0:04:54]} h6 {[%emt 0:06:03]} 18. Qd4 {[%emt 0:29:34]} Nc6 {[%emt 0:02:40]} 19. Qc3 {[%emt 0:02:43]} Rb7 {[%emt 0:05:58]} 20. cxb3 {[%emt 0:08:51]} Rxb3 {[%emt 0:04:10]} 21. Qc1 {[%emt 0:00:04]} Qb6+ {[%emt 0:02:23]} 22. Kh1 {[%emt 0:00:05]} Rxb2 {[%emt 0:00:10]} 23. Nc3 {[%emt 0:02:44]} Rf2 {[%emt 0:04:49]} 24. Rd1 {[%emt 0:05:14]} Qb2 {[%emt 0:02:10]} 25. Qxb2 {[%emt 0:00:45]} Rxb2 {[%emt 0:00:05]} 26. Rxd6 {[%emt 0:00:37]} Rc8 {[%emt 0:01:10]} 27. a5 {[%emt 0:03:44]} Rb3 {[%emt 0:01:08]} 28. Na4 {[%emt 0:00:44]} Ne8 {[%emt 0:02:04]} 29. Rd1 {[%emt 0:00:57]} Nxa5 {[%emt 0:00:10]} 30. Bc2 {[%emt 0:00:42]} Rb7 {[%emt 0:00:22]} 31. Nc3 {[%emt 0:02:13]} Rb2 {[%emt 0:06:05]} 32. Bb1 {[%emt 0:00:24]} Nc6 {[%emt 0:02:03]} 33. Rxa6 {[%emt 0:00:43]} Rb3 {[%emt 0:00:16]} 34. Nd5 {[%emt 0:02:10]} Bxd5 {[%emt 0:00:52]} 35. exd5 {[%emt 0:00:03]} Nb4 {[%emt 0:00:04]} 36. Rb6 {[%emt 0:00:57]} g5 {[%emt 0:01:13]} 37. Be5 {[%emt 0:02:02]} Nxd5 {[%emt 0:09:39]} 38. Rxh6 {[%emt 0:00:23]} f6 {[%emt 0:00:04]} 39. Bf5 {[%emt 0:00:51]} Rd8 {[%emt 0:01:01]} 40. Bxf6 {[%emt 0:00:37]} Nexf6 {[%emt 0:01:53]} 41. Rxf6 {[%emt 0:02:03]} Nxf6 {[%emt 0:00:33]} 42. Rxd8+ {[%emt 0:00:20]} Kf7 {[%emt 0:00:16]} 43. Rc8 {[%emt 0:03:21]} c3 {[%emt 0:02:11]} 44. Rc7+ {[%emt 0:11:32]} Kf8 {[%emt 0:00:18]} 45. Kg1 {[%emt 0:01:38]} Ra3 {[%emt 0:06:08]} 46. Be6 {[%emt 0:07:06]} Ke8 {[%emt 0:00:25]} 47. Kf2 {[%emt 0:00:39]} Kd8 {[%emt 0:00:29]} 48. Rc6 {[%emt 0:00:39]} Ke7 {[%emt 0:00:24]} 49. Ke2 {[%emt 0:02:08]} Nh5 {[%emt 0:09:07]} 50. g3 {[%emt 0:01:37]} Ng7 {[%emt 0:00:14]} 51. Bg4 {[%emt 0:01:28]} Ra2+ {[%emt 0:00:37]} 52. Ke3 {[%emt 0:01:14]} Rxh2 {[%emt 0:04:38]} 53. Rxc3 {[%emt 0:00:04]} Nh5 {[%emt 0:01:20]} 54. Bxh5 {[%emt 0:02:57]} Rxh5 {[%emt 0:00:05]} 55. Ke4 {[%emt 0:00:12]} Rh3 {[%emt 0:00:28]} 56. g4 {[%emt 0:00:41]} Kf6 {[%emt 0:00:08]} 57. Rc6+ {[%emt 0:00:18]} Kg7 {[%emt 0:00:28]} 58. Rc7+ {[%emt 0:00:04]} Kf6 {[%emt 0:00:38]} 59. Rc6+ {[%emt 0:00:05]} Kg7 {[%emt 0:00:03]} 60. Ra6 {[%emt 0:00:11]} Rg3 {[%emt 0:00:32]} 61. Ra7+ {[%emt 0:00:15]} Kg6 {[%emt 0:00:15]} 62. Ra6+ {[%emt 0:00:04]} Kg7 {[%emt 0:00:03]} 63. Rb6 {[%emt 0:01:13]} Rh3 {[%emt 0:00:10]} 64. Rb3 {[%emt 0:00:50]} Kf6 {[%emt 0:00:18]} 65. Ra3 {[%emt 0:00:03]} Rg3 {[%emt 0:00:37]} 66. Ra8 {[%emt 0:00:52]} Rh3 {[%emt 0:00:53]} 67. Rf8+ {[%emt 0:00:23]} Kg7 {[%emt 0:01:12]} 68. Rb8 {[%emt 0:00:35]} Kf6 {[%emt 0:00:51]} 69. Rb6+ {[%emt 0:00:06]} Kg7 {[%emt 0:00:36]} 70. Kf5 {[%emt 0:00:08]} Rxf3+ {[%emt 0:00:05]} 71. Kxg5 {[%emt 0:00:05]} Ra3 {[%emt 0:02:13]} 72. Rb7+ {[%emt 0:00:08]} Kg8 {[%emt 0:00:05]} 73. Kh5 {[%emt 0:00:08]} Ra6 {[%emt 0:00:26]} 74. g5 {[%emt 0:00:06]} Rc6 {[%emt 0:00:16]} 1/2-1/2

[Event "47th Rilton Cup 2017"]
[Site "?"]
[Date "2018.01.02"]
[Round "6"]
[White "Nihal, Sarin"]
[Black "Krasenkow, Michal"]
[Result "0-1"]
[ECO "D45"]
[WhiteElo "2507"]
[BlackElo "2671"]
[PlyCount "100"]
[EventDate "2018.??.??"]
[EventType "swiss"]
[EventCountry "SWE"]
[SourceTitle "Stockholm"]
[TimeControl "40/5400+30:1800+30"]
[WhiteClock "0:25:44"]
[BlackClock "0:00:51"]

1. d4 {[%emt 0:00:35]} d5 {[%emt 0:00:00]} 2. c4 {[%emt 0:00:34]} e6 {[%emt 0:00:00]} 3. Nf3 {[%emt 0:00:06]} Nf6 {[%emt 0:00:42]} 4. Nc3 {[%emt 0:00:18]} c6 {[%emt 0:00:18]} 5. e3 {[%emt 0:01:17]} Nbd7 {[%emt 0:00:12]} 6. Qc2 {[%emt 0:00:16]} Bd6 {[%emt 0:00:08]} 7. b3 {[%emt 0:01:38]} O-O {[%emt 0:00:20]} 8. Bb2 {[%emt 0:00:11]} e5 {[%emt 0:00:40]} 9. Be2 {[%emt 0:03:09]} e4 {[%emt 0:00:23]} 10. Nd2 {[%emt 0:00:02]} a6 {[%emt 0:02:27]} 11. O-O-O {[%emt 0:11:07]} b5 {[%emt 0:00:54]} 12. c5 {[%emt 0:00:11]} Bc7 {[%emt 0:00:30]} 13. g4 {[%emt 0:20:29]} b4 {[%emt 0:03:07]} 14. Na4 {[%emt 0:00:40]} a5 {[%emt 0:00:09]} 15. Rdg1 {[%emt 0:14:15]} Ba6 {[%emt 0:03:31]} 16. Bxa6 {[%emt 0:00:15]} Rxa6 {[%emt 0:00:05]} 17. Nf1 {[%emt 0:09:49]} Ra7 {[%emt 0:02:28]} 18. h4 {[%emt 0:01:31]} Bb8 19. Qe2 {[%emt 0:01:08]} Qe7 {[%emt 0:04:48]} 20. Kb1 {[%emt 0:13:31]} Qe6 {[%emt 0:00:55]} 21. Bc1 {[%emt 0:00:32]} Ne8 {[%emt 0:00:21]} 22. Ng3 {[%emt 0:00:05]} Bxg3 {[%emt 0:01:31]} 23. fxg3 {[%emt 0:01:57]} Ndf6 {[%emt 0:04:11]} 24. g5 {[%emt 0:00:15]} Ng4 {[%emt 0:03:49]} 25. Rf1 {[%emt 0:01:31]} f5 {[%emt 0:01:57]} 26. Rf4 {[%emt 0:07:01]} Nc7 {[%emt 0:00:29]} 27. Rhf1 {[%emt 0:01:05]} Raa8 {[%emt 0:05:31]} 28. Nb6 {[%emt 0:00:24]} Rad8 {[%emt 0:00:32]} 29. Bd2 {[%emt 0:01:13]} Qg6 {[%emt 0:04:31]} 30. Rg1 {[%emt 0:01:09]} h6 {[%emt 0:02:31]} 31. gxh6 {[%emt 0:00:16]} Qxh6 {[%emt 0:01:51]} 32. Kb2 {[%emt 0:01:12]} Nb5 {[%emt 0:02:17]} 33. Rgf1 {[%emt 0:01:48]} Qe6 {[%emt 0:00:26]} 34. Kc2 {[%emt 0:01:39]} g6 {[%emt 0:04:08]} 35. Na4 {[%emt 0:03:19]} Kg7 {[%emt 0:06:30]} 36. Nb2 {[%emt 0:01:00]} Rh8 {[%emt 0:01:10]} 37. Nd1 {[%emt 0:00:30]} Rdf8 {[%emt 0:01:12]} 38. Rg1 {[%emt 0:01:39]} g5 {[%emt 0:05:58]} 39. hxg5 {[%emt 0:00:42]} Rh2 {[%emt 0:01:20]} 40. Rg2 {[%emt 0:00:44]} Rh1 {[%emt 0:07:05]} 41. Be1 {[%emt 0:04:59]} Na3+ {[%emt 0:19:02]} 42. Kc1 {[%emt 0:10:24]} Ne5 {[%emt 0:02:36]} 43. Rf1 {[%emt 0:10:51]} Rxf1 {[%emt 0:08:04]} 44. Qxf1 {[%emt 0:00:02]} Nf3 {[%emt 0:00:29]} 45. Bd2 {[%emt 0:02:28]} Nb5 {[%emt 0:00:27]} 46. Qe2 {[%emt 0:01:11]} Rh8 {[%emt 0:00:00]} 47. Nf2 {[%emt 0:00:16]} Qg6 {[%emt 0:01:54]} 48. g4 {[%emt 0:02:41]} Qxg5 {[%emt 0:04:40]} 49. Nd3 {[%emt 0:01:33]} fxg4 {[%emt 0:02:42]} 50. Ne5 {[%emt 0:00:41]} Rh1+ {[%emt 0:00:25]} 0-1